[Event "*** SCC Grand Prix: Titled Tuesday Blitz"]
[Site "Chess.com"]
[Date "2020.10.06"]
[Round "5"]
[White "BilodeauA"]
[Black "DenisQ"]
[Result "1/2-1/2"]
[WhiteElo "2924"]
[BlackElo "2670"]
[TimeControl "180+1"]
[EndTime "10:57:50 PDT"]
[Termination "Game drawn by repetition"]

1. e4 {[%clk 0:03:00.9]} 1... c6 {[%clk 0:02:56.4]} 2. d3 {[%clk 0:03:00.4]}
2... d5 {[%clk 0:02:57.3]} 3. Nd2 {[%clk 0:03:01]} 3... e5 {[%clk 0:02:56.8]} 4.
Ngf3 {[%clk 0:03:01.2]} 4... Bd6 {[%clk 0:02:56.4]} 5. Be2 {[%clk 0:03:01.3]}
5... Nf6 {[%clk 0:02:55.9]} 6. O-O {[%clk 0:03:01.5]} 6... O-O {[%clk
0:02:56.2]} 7. c3 {[%clk 0:03:01.6]} 7... Re8 {[%clk 0:02:56]} 8. Re1 {[%clk
0:02:57.3]} 8... a5 {[%clk 0:02:55.4]} 9. a4 {[%clk 0:02:56.9]} 9... Na6 {[%clk
0:02:53.5]} 10. h3 {[%clk 0:02:56.3]} 10... Nc5 {[%clk 0:02:47]} 11. Qc2 {[%clk
0:02:56.1]} 11... h6 {[%clk 0:02:32.3]} 12. Bf1 {[%clk 0:02:56]} 12... dxe4
{[%clk 0:02:25]} 13. dxe4 {[%clk 0:02:47]} 13... Bc7 {[%clk 0:02:20.6]} 14. b3
{[%clk 0:02:40.7]} 14... Be6 {[%clk 0:02:01.9]} 15. Ba3 {[%clk 0:02:39.2]} 15...
Nfd7 {[%clk 0:01:58.7]} 16. Bc4 {[%clk 0:02:27]} 16... Qf6 {[%clk 0:01:56.2]}
17. Bxe6 {[%clk 0:02:26.8]} 17... Nxe6 {[%clk 0:01:54.3]} 18. Nf1 {[%clk
0:02:25.4]} 18... Nf4 {[%clk 0:01:50.7]} 19. N3h2 {[%clk 0:02:22.1]} 19... Bd6
{[%clk 0:01:49.2]} 20. Ng4 {[%clk 0:02:18.6]} 20... Qe7 {[%clk 0:01:48.7]} 21.
Bxd6 {[%clk 0:02:17.5]} 21... Qxd6 {[%clk 0:01:48.3]} 22. Rad1 {[%clk
0:02:18.4]} 22... Qe7 {[%clk 0:01:45.8]} 23. Ng3 {[%clk 0:02:18.1]} 23... Nc5
{[%clk 0:01:19.9]} 24. Nf5 {[%clk 0:01:47.5]} 24... Qg5 {[%clk 0:01:19.5]} 25.
Kh2 {[%clk 0:01:48]} 25... h5 {[%clk 0:01:12.6]} 26. Nge3 {[%clk 0:01:47.9]}
26... Rad8 {[%clk 0:01:07.5]} 27. Rxd8 {[%clk 0:01:14.5]} 27... Rxd8 {[%clk
0:01:03.6]} 28. b4 {[%clk 0:01:14.5]} 28... Ncd3 {[%clk 0:00:59.5]} 29. Rd1
{[%clk 0:01:13.3]} 29... axb4 {[%clk 0:00:58.1]} 30. cxb4 {[%clk 0:01:13.9]}
30... Nxb4 {[%clk 0:00:57]} 31. Rxd8+ {[%clk 0:01:12.9]} 31... Qxd8 {[%clk
0:00:56.1]} 32. Qb3 {[%clk 0:01:11.4]} 32... Nfd3 {[%clk 0:00:53.6]} 33. Qc4
{[%clk 0:00:53.5]} 33... Na6 {[%clk 0:00:39.7]} 34. Nd5 {[%clk 0:00:46.5]} 34...
cxd5 {[%clk 0:00:31.6]} 35. Qxd3 {[%clk 0:00:46.1]} 35... d4 {[%clk 0:00:23]}
36. Qb5 {[%clk 0:00:36.2]} 36... d3 {[%clk 0:00:20.3]} 37. Qxe5 {[%clk
0:00:35.3]} 37... f6 {[%clk 0:00:16.9]} 38. Qe6+ {[%clk 0:00:33.4]} 38... Kh7
{[%clk 0:00:16.1]} 39. Qb3 {[%clk 0:00:32.8]} 39... d2 {[%clk 0:00:14.3]} 40.
Qd1 {[%clk 0:00:31.9]} 40... g6 {[%clk 0:00:14.6]} 41. Ne3 {[%clk 0:00:32.2]}
41... Nb4 {[%clk 0:00:14]} 42. g3 {[%clk 0:00:25.9]} 42... Qd3 {[%clk
0:00:12.7]} 43. Nf1 {[%clk 0:00:20.6]} 43... Qxe4 {[%clk 0:00:10]} 44. Qxd2
{[%clk 0:00:20.5]} 44... Nd3 {[%clk 0:00:10.4]} 45. Qe3 {[%clk 0:00:13.5]} 45...
Qxe3 {[%clk 0:00:10.1]} 46. Nxe3 {[%clk 0:00:14]} 46... Nc5 {[%clk 0:00:10.3]}
47. a5 {[%clk 0:00:12.8]} 47... Kg7 {[%clk 0:00:10.5]} 48. g4 {[%clk 0:00:12.1]}
48... hxg4 {[%clk 0:00:10.5]} 49. hxg4 {[%clk 0:00:13]} 49... Kf7 {[%clk
0:00:11.2]} 50. Kg3 {[%clk 0:00:13.5]} 50... Ke6 {[%clk 0:00:11.8]} 51. Kf4
{[%clk 0:00:12.4]} 51... Nb3 {[%clk 0:00:11.9]} 52. Nc4 {[%clk 0:00:12.6]} 52...
Kd5 {[%clk 0:00:12.4]} 53. Ne3+ {[%clk 0:00:13.2]} 53... Ke6 {[%clk 0:00:10.8]}
54. Nc4 {[%clk 0:00:13.2]} 54... Kd5 {[%clk 0:00:11.2]} 55. Nb6+ {[%clk
0:00:13.8]} 55... Ke6 {[%clk 0:00:11]} 56. Nc4 {[%clk 0:00:10.2]} 1/2-1/2

[Event "*** SCC Grand Prix: Titled Tuesday Blitz"]
[Site "Chess.com"]
[Date "2020.10.06"]
[Round "5"]
[White "sorito"]
[Black "nrvisakh"]
[Result "0-1"]
[WhiteElo "2458"]
[BlackElo "2768"]
[TimeControl "180+1"]
[EndTime "10:57:53 PDT"]
[Termination "nrvisakh won by resignation"]

1. Nf3 {[%clk 0:03:00.9]} 1... Nf6 {[%clk 0:02:57.7]} 2. g3 {[%clk 0:03:00.1]}
2... g6 {[%clk 0:02:56.9]} 3. Bg2 {[%clk 0:03:00.6]} 3... Bg7 {[%clk 0:02:57.1]}
4. O-O {[%clk 0:03:01.5]} 4... O-O {[%clk 0:02:57.4]} 5. d4 {[%clk 0:03:02.1]}
5... d6 {[%clk 0:02:57.9]} 6. a4 {[%clk 0:03:02.2]} 6... a5 {[%clk 0:02:40.4]}
7. Nc3 {[%clk 0:03:01.5]} 7... c6 {[%clk 0:02:38.5]} 8. e4 {[%clk 0:03:01]} 8...
Na6 {[%clk 0:02:38.5]} 9. Re1 {[%clk 0:03:00.6]} 9... Nb4 {[%clk 0:02:38.4]} 10.
h3 {[%clk 0:03:00.2]} 10... Nd7 {[%clk 0:02:35.5]} 11. b3 {[%clk 0:02:45.3]}
11... c5 {[%clk 0:02:33]} 12. Bb2 {[%clk 0:02:42.8]} 12... cxd4 {[%clk
0:02:32.7]} 13. Nxd4 {[%clk 0:02:42.7]} 13... Bxd4 {[%clk 0:02:04.5]} 14. Qxd4
{[%clk 0:02:41.9]} 14... Nxc2 {[%clk 0:02:04.9]} 15. Qd2 {[%clk 0:02:25.9]}
15... Nxa1 {[%clk 0:02:04.6]} 16. Bxa1 {[%clk 0:02:26]} 16... Nc5 {[%clk
0:02:02.3]} 17. Rb1 {[%clk 0:02:06.9]} 17... Be6 {[%clk 0:02:00.5]} 18. Nb5
{[%clk 0:02:04.6]} 18... f6 {[%clk 0:01:58.2]} 19. Nd4 {[%clk 0:02:04.3]} 19...
Bf7 {[%clk 0:01:57.2]} 20. h4 {[%clk 0:02:01.4]} 20... e5 {[%clk 0:01:52.8]} 21.
Nb5 {[%clk 0:02:00.9]} 21... Nxb3 {[%clk 0:01:48]} 22. Qh6 {[%clk 0:01:32.5]}
22... Nc5 {[%clk 0:01:35.8]} 23. Rd1 {[%clk 0:01:27.4]} 23... Ra6 {[%clk
0:01:34]} 24. Bb2 {[%clk 0:01:10.6]} 24... Bb3 {[%clk 0:01:26.8]} 25. Rd2 {[%clk
0:01:04.4]} 25... Bxa4 {[%clk 0:01:24.8]} 26. Nc3 {[%clk 0:01:04.4]} 26... Bc6
{[%clk 0:01:23.8]} 27. h5 {[%clk 0:01:02.5]} 27... g5 {[%clk 0:01:21.5]} 28. Bf1
{[%clk 0:00:58.1]} 28... Rb6 {[%clk 0:01:13.3]} 29. Bc4+ {[%clk 0:00:56.9]}
29... Kh8 {[%clk 0:01:13.5]} 30. Ba3 {[%clk 0:00:57]} 30... Qe7 {[%clk
0:01:11.3]} 31. f3 {[%clk 0:00:50.7]} 31... Rb4 {[%clk 0:00:45.1]} 32. Bxb4
{[%clk 0:00:50.3]} 32... axb4 {[%clk 0:00:46]} 33. Nd5 {[%clk 0:00:50.7]} 33...
Bxd5 {[%clk 0:00:46.3]} 34. Bxd5 {[%clk 0:00:50.7]} 34... Qg7 {[%clk 0:00:37.4]}
35. Qxg7+ {[%clk 0:00:50.6]} 35... Kxg7 {[%clk 0:00:38.3]} 36. Rb2 {[%clk
0:00:51.1]} 36... b3 {[%clk 0:00:27.8]} 37. Bxb3 {[%clk 0:00:50.7]} 37... Nxb3
{[%clk 0:00:28.7]} 38. Rxb3 {[%clk 0:00:50.9]} 38... Rb8 {[%clk 0:00:29.1]} 39.
Rb6 {[%clk 0:00:50.3]} 39... Kf7 {[%clk 0:00:29.4]} 40. Rxd6 {[%clk 0:00:49.3]}
40... b5 {[%clk 0:00:29.4]} 41. Rd7+ {[%clk 0:00:49.7]} 41... Ke6 {[%clk
0:00:28.9]} 42. Rxh7 {[%clk 0:00:48.8]} 42... b4 {[%clk 0:00:29.2]} 43. Rc7
{[%clk 0:00:49]} 43... b3 {[%clk 0:00:29.6]} 44. Rc1 {[%clk 0:00:49.6]} 44...
Kd6 {[%clk 0:00:25.3]} 45. Kg2 {[%clk 0:00:49.5]} 45... b2 {[%clk 0:00:25.2]}
46. Rb1 {[%clk 0:00:49.6]} 46... Ke6 {[%clk 0:00:24.5]} 47. Kh3 {[%clk 0:00:50]}
47... f5 {[%clk 0:00:24.8]} 48. exf5+ {[%clk 0:00:43.9]} 48... Kxf5 {[%clk
0:00:25.7]} 49. g4+ {[%clk 0:00:44.3]} 49... Kf4 {[%clk 0:00:26]} 50. Kg2 {[%clk
0:00:44.7]} 50... Ke3 {[%clk 0:00:20.5]} 51. h6 {[%clk 0:00:33.9]} 51... Kd3
{[%clk 0:00:19.5]} 52. Kf2 {[%clk 0:00:29.7]} 52... Kc2 {[%clk 0:00:19.3]} 53.
Rxb2+ {[%clk 0:00:29.6]} 53... Kxb2 {[%clk 0:00:18.2]} 54. Ke3 {[%clk
0:00:29.4]} 54... Rh8 {[%clk 0:00:14.9]} 55. Ke4 {[%clk 0:00:29.7]} 55... Rxh6
{[%clk 0:00:14.7]} 56. Kf5 {[%clk 0:00:30.2]} 56... Rh8 {[%clk 0:00:11.7]} 57.
Kxg5 {[%clk 0:00:30.1]} 57... Rf8 {[%clk 0:00:11.3]} 58. Kh6 {[%clk 0:00:30.1]}
58... Rxf3 {[%clk 0:00:11.5]} 59. g5 {[%clk 0:00:31]} 59... e4 {[%clk 0:00:12]}
60. g6 {[%clk 0:00:31.5]} 60... e3 {[%clk 0:00:12.3]} 0-1

[Event "*** SCC Grand Prix: Titled Tuesday Blitz"]
[Site "Chess.com"]
[Date "2020.10.06"]
[Round "5"]
[White "davidkalashian"]
[Black "Shuvalov"]
[Result "1-0"]
[WhiteElo "2579"]
[BlackElo "2416"]
[TimeControl "180+1"]
[EndTime "10:57:53 PDT"]
[Termination "davidkalashian won by checkmate"]

1. d4 {[%clk 0:03:00.9]} 1... d5 {[%clk 0:02:59.2]} 2. Nf3 {[%clk 0:03:00.5]}
2... Nf6 {[%clk 0:02:59]} 3. c4 {[%clk 0:03:00.9]} 3... c6 {[%clk 0:02:58.8]} 4.
Qc2 {[%clk 0:03:00.7]} 4... dxc4 {[%clk 0:02:57.2]} 5. Qxc4 {[%clk 0:03:00.4]}
5... Bf5 {[%clk 0:02:56.6]} 6. Nc3 {[%clk 0:02:59.7]} 6... e6 {[%clk 0:02:56.8]}
7. g3 {[%clk 0:02:59.2]} 7... Nbd7 {[%clk 0:02:56.8]} 8. Bg2 {[%clk 0:02:58.4]}
8... Be7 {[%clk 0:02:57.1]} 9. O-O {[%clk 0:02:57.6]} 9... O-O {[%clk
0:02:57.2]} 10. Qb3 {[%clk 0:02:57.7]} 10... Qb6 {[%clk 0:02:56.1]} 11. Re1
{[%clk 0:02:57.9]} 11... Bg6 {[%clk 0:02:37.6]} 12. e4 {[%clk 0:02:54.7]} 12...
Rfe8 {[%clk 0:02:35.5]} 13. Bf4 {[%clk 0:02:48.2]} 13... Bh5 {[%clk 0:02:25.8]}
14. Rad1 {[%clk 0:02:16.9]} 14... Rad8 {[%clk 0:02:13.1]} 15. h3 {[%clk
0:02:13.2]} 15... Bb4 {[%clk 0:01:54.5]} 16. g4 {[%clk 0:01:55.1]} 16... Bg6
{[%clk 0:01:53.5]} 17. Nd2 {[%clk 0:01:38.3]} 17... e5 {[%clk 0:01:40.8]} 18.
Nc4 {[%clk 0:01:24.8]} 18... Qa6 {[%clk 0:01:37.6]} 19. dxe5 {[%clk 0:01:18.5]}
19... Bxc3 {[%clk 0:01:32.6]} 20. Qxc3 {[%clk 0:01:17]} 20... b5 {[%clk
0:01:18.4]} 21. Nd6 {[%clk 0:01:05.8]} 21... b4 {[%clk 0:01:17.9]} 22. Qc4
{[%clk 0:00:54.8]} 22... Qxc4 {[%clk 0:01:10.4]} 23. Nxc4 {[%clk 0:00:55.7]}
23... Nxe5 {[%clk 0:01:04.7]} 24. Rxd8 {[%clk 0:00:50.6]} 24... Nxc4 {[%clk
0:01:04.8]} 25. Rxe8+ {[%clk 0:00:48.6]} 25... Nxe8 {[%clk 0:01:05.7]} 26. Rc1
{[%clk 0:00:41]} 26... Nxb2 {[%clk 0:01:04.1]} 27. Rxc6 {[%clk 0:00:39.6]} 27...
f6 {[%clk 0:01:04.3]} 28. e5 {[%clk 0:00:36.8]} 28... fxe5 {[%clk 0:00:59.8]}
29. Bxe5 {[%clk 0:00:33.7]} 29... Nd3 {[%clk 0:00:59.6]} 30. Bd4 {[%clk
0:00:33.4]} 30... Bf7 {[%clk 0:00:54.5]} 31. Ra6 {[%clk 0:00:29]} 31... Nc1
{[%clk 0:00:48.1]} 32. Bf1 {[%clk 0:00:20.5]} 32... Nxa2 {[%clk 0:00:44.5]} 33.
Rxa7 {[%clk 0:00:19.5]} 33... Nc3 {[%clk 0:00:39.8]} 34. Rb7 {[%clk 0:00:15.3]}
34... Nd5 {[%clk 0:00:34.5]} 35. Bc4 {[%clk 0:00:13]} 35... h5 {[%clk
0:00:24.3]} 36. Rxf7 {[%clk 0:00:12]} 36... Kxf7 {[%clk 0:00:23.6]} 37. Bxd5+
{[%clk 0:00:12.2]} 37... Kg6 {[%clk 0:00:23.5]} 38. Be5 {[%clk 0:00:10.4]} 38...
hxg4 {[%clk 0:00:21.1]} 39. hxg4 {[%clk 0:00:11.3]} 39... Kg5 {[%clk 0:00:21.3]}
40. f3 {[%clk 0:00:11.3]} 40... Nf6 {[%clk 0:00:17]} 41. Bxf6+ {[%clk 0:00:11]}
41... gxf6 {[%clk 0:00:17.9]} 42. Kg2 {[%clk 0:00:10.3]} 42... f5 {[%clk
0:00:18.2]} 43. Kg3 {[%clk 0:00:10.5]} 43... fxg4 {[%clk 0:00:15.5]} 44. fxg4
{[%clk 0:00:11.4]} 44... Kg6 {[%clk 0:00:14.9]} 45. Kf4 {[%clk 0:00:11.9]} 45...
Kf6 {[%clk 0:00:15.3]} 46. g5+ {[%clk 0:00:12.4]} 46... Kg6 {[%clk 0:00:15.6]}
47. Kg4 {[%clk 0:00:12.8]} 47... Kg7 {[%clk 0:00:15.3]} 48. Kf5 {[%clk
0:00:13.7]} 48... Kh8 {[%clk 0:00:12.9]} 49. g6 {[%clk 0:00:12.2]} 49... Kg7
{[%clk 0:00:13]} 50. Kg5 {[%clk 0:00:12]} 50... b3 {[%clk 0:00:11.9]} 51. Bxb3
{[%clk 0:00:10.6]} 51... Kh8 {[%clk 0:00:12.2]} 52. Bc2 {[%clk 0:00:10.5]} 52...
Kg7 {[%clk 0:00:12.4]} 53. Kh5 {[%clk 0:00:10.4]} 53... Kg8 {[%clk 0:00:12]} 54.
Kh6 {[%clk 0:00:09.4]} 54... Kh8 {[%clk 0:00:10.7]} 55. g7+ {[%clk 0:00:09.4]}
55... Kg8 {[%clk 0:00:11.1]} 56. Bb3# {[%clk 0:00:09.2]} 1-0

[Event "*** SCC Grand Prix: Titled Tuesday Blitz"]
[Site "Chess.com"]
[Date "2020.10.06"]
[Round "5"]
[White "VladaSviridova"]
[Black "SanchezKelvin"]
[Result "0-1"]
[WhiteElo "2244"]
[BlackElo "2385"]
[TimeControl "180+1"]
[EndTime "10:57:56 PDT"]
[Termination "SanchezKelvin won on time"]

1. d4 {[%clk 0:03:00.9]} 1... Nf6 {[%clk 0:02:59.1]} 2. c4 {[%clk 0:03:00.6]}
2... g6 {[%clk 0:02:53]} 3. Nc3 {[%clk 0:02:59.3]} 3... Bg7 {[%clk 0:02:46.8]}
4. e4 {[%clk 0:02:59.1]} 4... d6 {[%clk 0:02:47]} 5. Nf3 {[%clk 0:02:59.1]} 5...
O-O {[%clk 0:02:44.1]} 6. Be2 {[%clk 0:02:59.7]} 6... c5 {[%clk 0:02:43.7]} 7.
O-O {[%clk 0:02:59.1]} 7... Nc6 {[%clk 0:02:43.3]} 8. d5 {[%clk 0:02:55.6]} 8...
Na5 {[%clk 0:02:41.5]} 9. h3 {[%clk 0:02:45.6]} 9... a6 {[%clk 0:02:28.4]} 10.
Rb1 {[%clk 0:02:44.5]} 10... Rb8 {[%clk 0:02:24.4]} 11. Re1 {[%clk 0:02:20.5]}
11... e6 {[%clk 0:02:09.4]} 12. a3 {[%clk 0:01:48.5]} 12... exd5 {[%clk
0:02:07]} 13. exd5 {[%clk 0:01:46.8]} 13... Bf5 {[%clk 0:02:05]} 14. Bd3 {[%clk
0:01:45.5]} 14... Bxd3 {[%clk 0:01:59.1]} 15. Qxd3 {[%clk 0:01:45.1]} 15... b5
{[%clk 0:01:56.9]} 16. cxb5 {[%clk 0:01:33.8]} 16... c4 {[%clk 0:01:49.5]} 17.
Qc2 {[%clk 0:01:19.8]} 17... axb5 {[%clk 0:01:45.7]} 18. Bg5 {[%clk 0:01:15.1]}
18... h6 {[%clk 0:01:39.2]} 19. Bf4 {[%clk 0:01:14.4]} 19... Nb3 {[%clk
0:01:23.1]} 20. Rbd1 {[%clk 0:01:08.8]} 20... Re8 {[%clk 0:01:11.2]} 21. Rxe8+
{[%clk 0:01:05.8]} 21... Nxe8 {[%clk 0:01:10]} 22. Re1 {[%clk 0:00:57.7]} 22...
Nc7 {[%clk 0:00:58.3]} 23. Qe4 {[%clk 0:00:53.4]} 23... Bf8 {[%clk 0:00:48.9]}
24. Nd4 {[%clk 0:00:45.4]} 24... Nxd4 {[%clk 0:00:45.1]} 25. Qxd4 {[%clk
0:00:45.6]} 25... Qd7 {[%clk 0:00:43.6]} 26. Ne4 {[%clk 0:00:42.8]} 26... Ne8
{[%clk 0:00:38.5]} 27. Qe3 {[%clk 0:00:35.8]} 27... Kh7 {[%clk 0:00:32.7]} 28.
h4 {[%clk 0:00:30.7]} 28... Bg7 {[%clk 0:00:24.6]} 29. Re2 {[%clk 0:00:19.7]}
29... b4 {[%clk 0:00:20]} 30. a4 {[%clk 0:00:18.6]} 30... Qxa4 {[%clk
0:00:15.6]} 31. Nxd6 {[%clk 0:00:18.1]} 31... Nxd6 {[%clk 0:00:15.7]} 32. Bxd6
{[%clk 0:00:17.7]} 32... Rd8 {[%clk 0:00:16.2]} 33. Be5 {[%clk 0:00:16.5]} 33...
Re8 {[%clk 0:00:14.3]} 34. Qd4 {[%clk 0:00:13.8]} 34... Qa1+ {[%clk 0:00:08.9]}
35. Kh2 {[%clk 0:00:12.8]} 35... Qa5 {[%clk 0:00:07.3]} 36. Re3 {[%clk
0:00:10.2]} 36... Rxe5 {[%clk 0:00:05.4]} 37. Rxe5 {[%clk 0:00:09.6]} 37... Qc7
{[%clk 0:00:05.6]} 38. f4 {[%clk 0:00:09.4]} 38... Bxe5 {[%clk 0:00:04.6]} 39.
fxe5 {[%clk 0:00:08.2]} 39... c3 {[%clk 0:00:04.3]} 40. bxc3 {[%clk 0:00:08.1]}
40... Qxc3 {[%clk 0:00:03.8]} 41. Qf4 {[%clk 0:00:05.5]} 41... Kg7 {[%clk
0:00:02.9]} 42. e6 {[%clk 0:00:04.6]} 42... fxe6 {[%clk 0:00:02.8]} 43. dxe6
{[%clk 0:00:04.6]} 43... Qf6 {[%clk 0:00:02.6]} 44. Qc7+ {[%clk 0:00:04.4]}
44... Kf8 {[%clk 0:00:02.4]} 45. Qd6+ {[%clk 0:00:03.8]} 45... Qe7 {[%clk
0:00:02.2]} 46. Qf4+ {[%clk 0:00:02]} 46... Kg7 {[%clk 0:00:02.3]} 47. Qe5+
{[%clk 0:00:02.1]} 47... Qf6 {[%clk 0:00:02.2]} 48. Qc7+ {[%clk 0:00:02.2]}
48... Kf8 {[%clk 0:00:02.7]} 49. Qb8+ {[%clk 0:00:01.9]} 49... Kg7 {[%clk
0:00:02.8]} 50. Qxb4 {[%clk 0:00:01.7]} 50... Qe5+ {[%clk 0:00:02.3]} 0-1

[Event "*** SCC Grand Prix: Titled Tuesday Blitz"]
[Site "Chess.com"]
[Date "2020.10.06"]
[Round "5"]
[White "zajka-molotok"]
[Black "queen_iryna"]
[Result "1-0"]
[WhiteElo "2472"]
[BlackElo "2301"]
[TimeControl "180+1"]
[EndTime "10:58:01 PDT"]
[Termination "zajka-molotok won by resignation"]

1. b4 {[%clk 0:03:00.9]} 1... e5 {[%clk 0:02:58.8]} 2. Bb2 {[%clk 0:03:00.9]}
2... d6 {[%clk 0:02:58.6]} 3. e3 {[%clk 0:03:00.7]} 3... Nf6 {[%clk 0:02:58.6]}
4. Nf3 {[%clk 0:03:00.8]} 4... Be7 {[%clk 0:02:57.4]} 5. d4 {[%clk 0:03:00.7]}
5... e4 {[%clk 0:02:56.8]} 6. Nfd2 {[%clk 0:03:00.6]} 6... O-O {[%clk
0:02:53.4]} 7. c4 {[%clk 0:02:59.4]} 7... c6 {[%clk 0:02:50.9]} 8. Nc3 {[%clk
0:02:56.8]} 8... Bf5 {[%clk 0:02:41.3]} 9. Be2 {[%clk 0:02:55.1]} 9... Nbd7
{[%clk 0:02:32.6]} 10. g4 {[%clk 0:02:45]} 10... Bg6 {[%clk 0:02:26.6]} 11. g5
{[%clk 0:02:44.8]} 11... Ne8 {[%clk 0:02:26.2]} 12. Ndxe4 {[%clk 0:02:43.1]}
12... Bxg5 {[%clk 0:02:17]} 13. Nxg5 {[%clk 0:02:34.7]} 13... Qxg5 {[%clk
0:02:16.9]} 14. Qd2 {[%clk 0:02:26.4]} 14... a5 {[%clk 0:02:10.6]} 15. b5 {[%clk
0:02:25.3]} 15... Nef6 {[%clk 0:02:04.4]} 16. O-O-O {[%clk 0:02:17.2]} 16...
cxb5 {[%clk 0:01:50.7]} 17. Nxb5 {[%clk 0:02:06]} 17... Ne4 {[%clk 0:01:49.9]}
18. Qe1 {[%clk 0:01:59.7]} 18... Qf5 {[%clk 0:01:39.5]} 19. Bd3 {[%clk
0:01:53.8]} 19... Qxf2 {[%clk 0:00:59.6]} 20. Bxe4 {[%clk 0:01:51.7]} 20... Qxe1
{[%clk 0:00:59.8]} 21. Rhxe1 {[%clk 0:01:51.6]} 21... Bxe4 {[%clk 0:01:00.7]}
22. Nxd6 {[%clk 0:01:51.4]} 22... Bf3 {[%clk 0:01:00]} 23. Rd3 {[%clk
0:01:44.3]} 23... f5 {[%clk 0:00:50.8]} 24. Rb3 {[%clk 0:01:28.8]} 24... b6
{[%clk 0:00:40.7]} 25. Rf1 {[%clk 0:01:19.7]} 25... Be4 {[%clk 0:00:40.2]} 26.
Kd2 {[%clk 0:01:15.7]} 26... Rf6 {[%clk 0:00:37.4]} 27. Nxe4 {[%clk 0:01:04.2]}
27... fxe4 {[%clk 0:00:38.3]} 28. Rxf6 {[%clk 0:01:04]} 28... gxf6 {[%clk
0:00:39.2]} 29. Rb5 {[%clk 0:00:48.2]} 29... Kf7 {[%clk 0:00:38.4]} 30. Kc3
{[%clk 0:00:44.2]} 30... Ke6 {[%clk 0:00:29]} 31. d5+ {[%clk 0:00:40.7]} 31...
Kd6 {[%clk 0:00:25.7]} 32. Kd4 {[%clk 0:00:39.2]} 32... Rg8 {[%clk 0:00:21.4]}
33. Ba3+ {[%clk 0:00:38.9]} 33... Kc7 {[%clk 0:00:20]} 34. c5 {[%clk 0:00:20.8]}
34... bxc5+ {[%clk 0:00:19.3]} 35. Bxc5 {[%clk 0:00:21.5]} 35... Rg2 {[%clk
0:00:15.4]} 36. Rxa5 {[%clk 0:00:19.6]} 36... f5 {[%clk 0:00:14.1]} 37. Be7
{[%clk 0:00:16.3]} 37... Rd2+ {[%clk 0:00:12.8]} 38. Kc4 {[%clk 0:00:11.1]}
38... Ne5+ {[%clk 0:00:12.2]} 39. Kb4 {[%clk 0:00:10.6]} 39... Rb2+ {[%clk
0:00:10.1]} 40. Kc3 {[%clk 0:00:10.4]} 40... Nd3 {[%clk 0:00:05.4]} 41. d6+
{[%clk 0:00:10.5]} 41... Kd7 {[%clk 0:00:05.6]} 42. Ra7+ {[%clk 0:00:10.7]}
42... Ke6 {[%clk 0:00:05.7]} 43. Bf8 {[%clk 0:00:09.2]} 43... Rb8 {[%clk
0:00:04.7]} 44. Bg7 {[%clk 0:00:08.5]} 44... Rc8+ {[%clk 0:00:04.9]} 45. Kd2
{[%clk 0:00:07.9]} 45... Rd8 {[%clk 0:00:04.5]} 46. Bd4 {[%clk 0:00:06.8]} 46...
Rxd6 {[%clk 0:00:04.2]} 47. a4 {[%clk 0:00:06.9]} 47... f4 {[%clk 0:00:04.3]}
48. a5 {[%clk 0:00:05.1]} 48... f3 {[%clk 0:00:04.2]} 49. Rxh7 {[%clk
0:00:03.9]} 49... f2 {[%clk 0:00:04.1]} 50. Ke2 {[%clk 0:00:04]} 50... Ra6
{[%clk 0:00:03.9]} 51. Rh6+ {[%clk 0:00:04.2]} 51... Kd5 {[%clk 0:00:04.2]} 52.
Rxa6 {[%clk 0:00:05.1]} 52... Kc4 {[%clk 0:00:04.5]} 53. Rf6 {[%clk 0:00:05]}
53... Kb5 {[%clk 0:00:04.7]} 54. Rxf2 {[%clk 0:00:05]} 54... Nxf2 {[%clk
0:00:04.5]} 55. Kxf2 {[%clk 0:00:05.9]} 55... Kxa5 {[%clk 0:00:05]} 56. h4
{[%clk 0:00:06.1]} 56... Kb5 {[%clk 0:00:05.7]} 57. h5 {[%clk 0:00:06.8]} 57...
Kc6 {[%clk 0:00:06.6]} 58. h6 {[%clk 0:00:07.5]} 58... Kd5 {[%clk 0:00:07.5]}
59. h7 {[%clk 0:00:08.3]} 59... Kc4 {[%clk 0:00:08.4]} 60. h8=Q {[%clk
0:00:08.7]} 60... Kd3 {[%clk 0:00:09.3]} 61. Qe5 {[%clk 0:00:08.9]} 1-0